bitfinex-derivatives/quotes_ETHF0:USTF0_20250928
["timestamp","ask_amount","ask_price","bid_price","bid_amount"]
[1759091783987,1.05445,4060.4,4060.3,3.90960016]
[1759091784186,14.59936084,4060.4,4060.3,3.90960016]
[1759091784582,14.59936084,4060.4,4060.3,0.70180016]
[1759091784884,14.15621084,4060.4,4060.3,0.70180016]
[1759091785584,0.3263,4060.4,4060.3,0.70180016]
[1759091785789,0.285,4060.7,4060.3,0.70180016]
[1759091785981,0.285,4060.7,4060.5,0.3394]
[1759091786180,3.8181,4060.9,4060.7,0.78251]
[1759091786377,0.284,4060.9,4060.8,4.24900016]
[1759091786582,0.284,4060.9,4060.8,4.90069313]
[1759091786786,0.284,4060.9,4060.8,4.24900016]
[1759091787087,0.284,4060.9,4060.8,4.90069308]
[1759091787286,0.6103,4060.9,4060.8,4.77291918]
[1759091787591,14.15521084,4060.9,4060.8,1.35471121]
[1759091787893,14.15521084,4060.9,4060.8,0.70180016]
[1759091788280,19.15521084,4060.9,4060.8,0.70180016]
[1759091788481,0.44315,4060.4,4060.2,3.2078]
[1759091788791,14.15521084,4060.3,4060.2,3.2078]
[1759091789182,14.15521084,4060.3,4060.2,3.86071105]
[1759091789390,14.15521084,4060.3,4060.2,3.2078]
[1759091790289,13.54491084,4060.3,4060.2,3.2078]
[1759091790594,13.54491084,4060.3,4060.2,3.5472]
[1759091790595,13.82791084,4060.3,4060.2,3.5472]
[1759091791593,14.15421084,4060.3,4060.2,3.2078]
[1759091793490,13.87121084,4060.3,4060.2,3.2078]
[1759091793694,14.15421084,4060.3,4060.2,3.2078]
[1759091794789,13.87121084,4060.3,4060.2,3.2078]
[1759091794985,0.282,4060.4,4060.3,0.3394]
[1759091795187,14.15321084,4060.4,4060.2,0.65545569]
[1759091795381,13.54491084,4060.3,4060.1,1.09863569]
[1759091795594,13.82691084,4060.2,4060.1,1.43803569]
[1759091795984,0.282,4060.2,4060.1,1.43803569]
[1759091796489,0.282,4060.2,4060.1,0.78258]
[1759091796891,0.282,4060.2,4060.1,1.43803569]
[1759091797087,0.3263,4061.2,4060.1,0.65545569]
[1759091797291,13.54491084,4060.7,4060.5,0.79635569]
[1759091797597,13.54491084,4060.7,4060.6,4.20265569]
[1759091797891,0.00213878,4061.3,4061.0,0.44308]
[1759091798086,0.00213878,4061.3,4061.1,0.3394]
[1759091798290,0.282,4061.2,4061.1,0.78248]
[1759091798599,13.82691084,4061.2,4061.1,0.3394]
[1759091798991,13.54491084,4061.2,4061.1,0.3394]
[1759091799193,13.82591084,4061.2,4061.1,0.3394]
[1759091801186,13.54491084,4061.2,4061.1,0.3394]
[1759091801392,13.82591084,4061.2,4061.1,0.3394]
[1759091801700,0.76942,4060.7,4060.6,3.2078]
[1759091801896,14.59533084,4060.7,4060.6,3.2078]
[1759091802790,14.15221084,4060.7,4060.6,3.2078]
[1759091805201,22.36001084,4060.7,4060.0,3.21016586]
[1759091805401,13.87121084,4060.1,4060.0,3.21016586]
[1759091805602,14.15121084,4060.1,4060.0,3.21016586]
[1759091805801,14.15121084,4060.1,4060.0,3.54956586]
[1759091806100,13.54491084,4060.1,4060.0,3.69046586]
[1759091806295,13.82391084,4060.1,4060.0,3.69046586]
[1759091807099,13.82391084,4060.1,4060.0,3.54956586]
[1759091809193,14.15021084,4060.1,4060.0,3.54956586]
[1759091809591,14.15021084,4060.1,4060.0,3.21016586]
[1759091813908,14.61061084,4060.1,4060.0,3.21016586]
[1759091819613,14.61061084,4060.1,4060.0,0.00236586]
[1759091819807,0.90364,4059.6,4059.5,3.3487]
[1759091820015,15.05185084,4059.6,4059.5,3.2078]
[1759091820812,15.05185084,4059.6,4059.5,3.21029396]
[1759091821914,15.05185084,4059.6,4059.5,0.00249396]
[1759091822813,0.2334,4058.1,4058.0,0.6946]
[1759091823012,0.5094,4058.1,4058.0,0.9079]
[1759091823310,3.2078,4058.6,4058.0,0.5713]
[1759091823515,0.2334,4059.5,4059.4,0.2171]
[1759091823718,0.00178333,4059.5,4059.4,1.21260302]
[1759091823912,0.27778333,4059.5,4059.4,1.21260302]
[1759091824917,3.4412,4060.4,4060.3,0.87356]
[1759091825117,3.4828,4060.4,4060.3,1.21016]
[1759091825606,0.275,4060.4,4060.3,1.21016]
[1759091826118,0.27789313,4060.4,4060.3,1.21016]
[1759091827214,0.27789313,4060.4,4060.3,9.41796]
[1759091827812,0.00289313,4060.4,4060.3,9.41796]
[1759091830419,0.23629313,4060.4,4060.3,3.9748]
[1759091830620,14.33550397,4060.4,4060.3,3.9748]
[1759091831130,14.60950397,4060.4,4060.3,3.2078]
[1759091831628,14.28220397,4060.4,4060.0,0.1345]
[1759091831829,14.30661084,4060.1,4059.5,0.57775]
[1759091832028,13.54491084,4059.9,4059.5,0.57775]
[1759091832322,13.98891084,4059.9,4059.8,0.5314]
[1759091832623,0.444,4059.9,4059.8,0.5314]
[1759091833220,0.7617,4059.9,4059.8,0.5314]
[1759091833420,14.30661084,4059.9,4059.8,0.5314]
[1759091835027,13.54491084,4059.9,4059.8,0.7554]
[1759091835229,13.81891084,4059.9,4059.8,3.9632]
[1759091837034,13.81891084,4059.9,4059.8,0.5314]
[1759091837035,15.02382084,4059.9,4059.8,0.5314]
[1759091837734,14.58061084,4059.9,4059.8,0.5314]
[1759091837937,14.26291084,4059.9,4059.8,0.5314]
[1759091838134,14.58061084,4059.9,4059.8,0.5314]
[1759091838730,14.26291084,4059.9,4059.8,0.5314]
[1759091840334,14.58061084,4059.9,4059.8,0.318]
[1759091841329,14.58061084,4059.9,4059.5,0.5314]
[1759091841330,0.7617,4059.6,4059.5,0.5314]
[1759091841534,1.0347,4059.6,4059.5,0.318]
[1759091841734,0.5001,4059.6,4059.5,0.8833]
[1759091842042,0.273,4059.6,4059.5,0.8833]
[1759091842844,0.3177,4061.0,4060.3,0.97457]
[1759091843147,0.272,4060.8,4060.3,4.40637]
[1759091843838,3.2078,4061.2,4060.3,9.67837]
[1759091844140,3.2078,4061.2,4061.1,0.7657]
[1759091845032,0.2197,4060.7,4060.6,0.2129]
[1759091845236,13.98331084,4060.7,4060.6,0.5355]
[1759091845436,0.4384,4060.7,4060.6,0.5355]
[1759091845640,1.21535,4060.4,4060.3,3.2078]
[1759091845836,14.58911084,4060.4,4060.3,3.5304]
[1759091846139,14.25531084,4060.4,4060.3,3.9735]
[1759091846339,0.4384,4061.0,4060.9,0.5355]
[1759091846538,1.0442,4061.0,4060.9,0.5355]
[1759091846738,14.58911084,4061.0,4060.9,0.5355]
[1759091846936,0.3338,4060.9,4060.6,0.3226]
[1759091847142,0.3338,4060.9,4060.5,0.128]
[1759091847143,0.4384,4060.5,4060.4,0.5355]
[1759091847339,0.7104,4060.5,4060.4,0.7657]
[1759091847536,3.21084481,4061.2,4060.9,0.2129]
[1759091847847,0.4384,4061.0,4060.9,0.7657]
[1759091848148,13.98331084,4061.0,4060.9,0.7657]
[1759091850149,3.21084481,4061.2,4061.0,0.44308]
[1759091850339,3.21084481,4061.2,4061.1,0.7657]
[1759091850340,0.00304481,4061.2,4061.1,0.7657]
[1759091855642,0.22274481,4061.2,4061.1,0.7657]
[1759091856343,0.00304481,4061.2,4061.1,0.7657]
[1759091859444,13.76765565,4061.2,4061.1,0.7657]
[1759091859756,0.00304481,4061.2,4061.1,0.7657]
[1759091864848,13.54795565,4061.2,4061.1,0.7657]
[1759091869352,13.76765565,4061.2,4061.1,0.7657]
[1759091873251,13.98635565,4061.2,4061.1,0.7657]
[1759091875251,1.21948,4061.1,4061.0,3.2078]
[1759091875454,15.03139084,4061.1,4061.0,3.2078]
[1759091876154,22.01971084,4061.1,4061.0,0.1279]
[1759091876360,22.46279084,4061.1,4061.0,0.1279]
[1759091877255,0.44312,4060.7,4060.6,0.3196]
[1759091877457,20.32595944,4060.7,4060.5,0.1279]
[1759091877654,16.75271084,4060.6,4060.5,0.1279]
[1759091878255,20.55931327,4060.6,4060.5,0.1279]
[1759091879060,25.55931327,4060.6,4060.0,0.128]
[1759091879249,17.19590084,4060.1,4060.0,0.4476]
[1759091879455,17.46190084,4060.1,4060.0,0.4476]
[1759091881656,17.01871084,4060.1,4060.0,0.4476]
[1759091881956,3.2078,4060.7,4060.6,0.7714]
[1759091882161,3.4738,4060.7,4060.6,0.3196]
[1759091882560,17.01871084,4060.7,4060.6,0.3196]
[1759091883058,17.01871084,4060.7,4060.5,0.1279]
[1759091883059,22.01871084,4060.7,4060.5,0.1279]
[1759091883363,13.98804084,4060.6,4060.5,0.1279]
[1759091884364,13.98804084,4060.6,4060.5,0.4475]
[1759091885157,13.98804084,4060.6,4060.5,0.8993]
[1759091885158,13.54491084,4060.6,4060.5,0.8993]
[1759091885357,3.2078,4060.7,4060.5,0.5797]
[1759091885561,0.266,4060.6,4060.5,0.5797]
[1759091886167,0.266,4060.6,4060.5,0.8993]
[1759091886554,3.21084481,4061.2,4060.5,0.8993]
[1759091886763,3.21084481,4061.2,4061.1,0.4518]
[1759091886962,3.47684481,4061.2,4061.1,0.7714]
[1759091889667,0.26904481,4061.2,4061.1,0.7714]
[1759091889867,0.26904481,4061.2,4061.1,5.7714]
[1759091890773,0.00304481,4061.2,4061.1,5.7714]
[1759091898980,0.44292,4062.6,4062.5,0.4792]
[1759091899182,14.10483084,4062.6,4062.5,0.4792]
[1759091899474,13.66191084,4062.6,4062.5,0.4792]
[1759091899881,13.66497354,4062.6,4062.5,0.48124306]
[1759091900379,14.99825674,4062.6,4062.5,0.48124306]
[1759091901377,14.99825674,4062.6,4062.5,0.70854306]
[1759091901587,13.54797354,4062.6,4062.5,0.93614306]
[1759091901880,13.81097354,4062.6,4062.5,0.93614306]
[1759091903378,13.54797354,4062.6,4062.5,0.93614306]
[1759091906983,13.99089354,4062.6,4062.5,0.93614306]
[1759091907284,13.54797354,4062.6,4062.5,0.93614306]
[1759091907481,18.08905674,4062.6,4062.5,0.92774306]
[1759091907876,18.08905674,4062.6,4062.5,0.70854306]
[1759091908481,18.08905674,4062.6,4062.5,0.48124306]
[1759091911685,23.08905674,4062.6,4062.5,0.48124306]
[1759091912082,23.08905674,4062.6,4062.5,0.00204306]
[1759091913086,0.44296,4062.2,4062.1,0.3401]
[1759091913286,15.58315404,4062.2,4062.1,0.3401]
[1759091914082,15.58315404,4062.2,4062.1,0.34270179]
[1759091928092,14.24987084,4062.2,4062.1,0.34270179]
[1759091928294,15.58315404,4062.2,4062.1,0.34270179]
[1759091932387,15.14019404,4062.2,4062.1,0.34270179]
[1759091933094,13.54491084,4062.2,4062.1,0.79080179]
[1759091933296,3.2078,4062.5,4062.4,0.4481]
[1759091933494,3.4678,4062.5,4062.4,0.7882]
[1759091933797,17.01271084,4062.5,4062.4,0.7882]
[1759091934292,17.01271084,4062.5,4062.4,0.3401]
[1759091934503,17.01271084,4062.5,4062.4,0.56]
[1759091934799,17.01271084,4062.5,4062.4,0.7798]
[1759091935700,16.75271084,4062.5,4062.4,0.7798]
[1759091935903,17.01271084,4062.5,4062.4,0.7798]
[1759091939705,18.34599404,4062.5,4062.4,0.7798]
[1759091939999,17.01271084,4062.5,4062.4,0.7798]
[1759091941696,17.01271084,4062.5,4062.4,0.3401]
[1759091950006,3.4678,4062.5,4062.4,0.3401]
[1759091950211,17.01271084,4062.5,4062.4,0.3401]
[1759091953115,17.01271084,4062.5,4062.4,0.56]
[1759091953708,16.75271084,4062.5,4062.4,0.7743]
[1759091953911,17.01271084,4062.5,4062.4,0.7743]
[1759091957621,3.2078,4062.5,4062.4,0.7743]
[1759091958012,3.4678,4062.5,4062.4,5.7743]
[1759091958914,3.4678,4062.5,4062.4,0.7743]
[1759091964718,3.4678,4062.5,4062.4,0.56]
[1759091964921,3.4678,4062.5,4062.4,0.79]
[1759091965117,3.2078,4062.5,4062.4,0.79]
[1759091965425,3.4678,4062.5,4062.4,0.79]
[1759091966617,0.26,4062.5,4062.4,0.79]
[1759091967021,0.0030627,4062.6,4062.5,0.8913]
[1759091967223,0.2630627,4062.6,4062.5,0.8913]
[1759091967525,0.0030627,4062.6,4062.5,0.8913]
[1759091967721,0.2630627,4062.6,4062.5,0.8913]
[1759091978030,3.65056,4063.6,4063.5,0.8913]
[1759091978228,3.90956,4063.6,4063.5,0.8913]
[1759091978423,17.45447084,4063.6,4063.5,0.8913]
[1759091978631,17.45447084,4063.6,4063.5,0.6672]
[1759091978923,17.45626818,4063.6,4063.5,0.6672]
[1759091979520,3.20959734,4063.6,4063.5,0.8913]
[1759091979716,4.53811961,4063.6,4063.5,0.8913]
[1759091979916,13.80570818,4063.6,4063.5,0.8913]
[1759091984542,14.87523045,4063.6,4063.5,0.8913]
[1759091986024,0.00179734,4063.6,4063.5,0.8913]
[1759091987636,1.07131961,4063.6,4063.5,0.8913]
[1759091989133,14.61623045,4063.6,4063.5,0.8913]
[1759091990535,13.54670818,4063.6,4063.5,0.8913]
[1759091990838,13.54670818,4063.6,4063.5,0.6672]
[1759091991934,13.54670818,4063.6,4063.5,0.8913]
[1759091992135,14.61623045,4063.6,4063.5,0.8913]
[1759091993037,14.87523045,4063.6,4063.5,0.8913]
[1759091994033,13.80570818,4063.6,4063.5,0.8913]
[1759091994334,14.87523045,4063.6,4063.5,0.8913]
[1759091995640,13.80570818,4063.6,4063.5,0.8913]
[1759091996540,14.87523045,4063.6,4063.5,0.8913]
[1759091997443,1.33031961,4063.6,4063.5,0.8913]
[1759091998840,14.87523045,4063.6,4063.5,0.6672]
[1759092000747,3.46859734,4063.6,4063.5,0.8854]
[1759092001242,0.00179734,4063.6,4063.5,0.8854]
[1759092001448,0.26079734,4063.6,4063.5,0.8854]
[1759092001641,0.00179734,4063.6,4063.5,5.8854]
[1759092001841,0.00179734,4063.6,4063.5,0.8854]
[1759092003947,13.54670818,4063.6,4063.5,0.8854]
[1759092004445,0.00179734,4063.6,4063.5,0.8854]
[1759092005343,0.26079734,4063.6,4063.5,0.8854]
[1759092008454,13.80570818,4063.6,4063.5,0.8854]
[1759092009843,0.26079734,4063.6,4063.5,0.8854]
[1759092010239,13.80570818,4063.6,4063.5,0.8854]
[1759092011646,17.01350818,4063.6,4063.5,0.4414]
[1759092012038,17.01350818,4063.6,4062.5,0.3864]
[1759092012039,0.44288,4062.6,4062.5,0.1274]
[1759092012244,1.77140227,4062.6,4062.5,0.1274]
[1759092012443,1.32852227,4062.6,4062.5,0.3514]
[1759092012846,0.259,4062.6,4062.5,0.5569]
[1759092013045,0.259,4062.9,4062.5,5.5569]
[1759092013246,0.259,4062.9,4062.5,0.5569]
[1759092013450,0.259,4062.9,4062.5,0.99979]
[1759092014051,0.259,4062.9,4062.8,0.4295]
[1759092014253,0.259,4062.9,4062.8,0.7557]
[1759092016149,0.259,4062.9,4062.8,0.3262]
[1759092016346,0.259,4062.9,4062.1,1.07212406]
[1759092016347,0.44293,4062.3,4062.2,0.3262]
[1759092016649,4.97925227,4062.3,4062.2,0.3262]
[1759092016847,17.01171084,4062.3,4062.2,0.3262]
[1759092017149,0.259,4062.3,4062.2,0.4295]
[1759092017346,0.259,4062.3,4062.2,0.7557]
[1759092018848,0.44287,4062.9,4062.2,5.4295]
[1759092019048,3.2078,4063.1,4063.0,0.8874]
[1759092019251,3.4668,4063.1,4063.0,0.8874]
[1759092019446,17.01171084,4063.1,4063.0,0.8874]
[1759092022249,13.80391084,4063.1,4063.0,0.8874]
[1759092022849,15.13682957,4063.1,4063.0,0.4579]
[1759092023142,18.34462957,4063.1,4063.0,0.4579]
[1759092026155,1.10713,4063.0,4062.5,2.61107]
[1759092026349,0.44299,4061.7,4061.2,0.336]
[1759092026548,3.2078,4062.2,4061.6,0.336]
[1759092026755,13.54491084,4061.9,4061.8,0.7664]
[1759092026956,13.80391084,4061.9,4061.8,0.7664]
[1759092027162,14.29442873,4061.9,4061.8,0.7664]
[1759092027762,14.29442873,4061.9,4061.8,0.76883209]
[1759092028255,14.29442873,4061.9,4061.8,0.33843209]
[1759092028464,14.29442873,4061.9,4061.8,0.00243209]
[1759092028863,14.29442873,4061.9,4061.8,0.33843209]
[1759092029359,15.36834746,4061.9,4061.8,0.76883209]
[1759092029552,15.62734746,4061.9,4061.8,0.76883209]
[1759092030464,15.62734746,4061.9,4061.8,0.33843209]
[1759092030666,15.62734746,4061.9,4061.8,0.00243209]
[1759092030866,20.62734746,4061.9,4061.8,0.00243209]
[1759092034764,20.62734746,4061.9,4061.0,0.4671]
[1759092034956,14.87782957,4061.1,4061.0,0.4671]
[1759092035162,15.62734746,4061.1,4061.0,0.4671]
[1759092035970,15.62734746,4061.1,4061.0,0.47003407]
[1759092036569,15.62734746,4061.1,4061.0,0.68303407]
[1759092038771,15.62734746,4061.1,4061.0,0.47003407]
[1759092039161,15.62734746,4061.1,4061.0,0.00293407]
[1759092039367,15.62734746,4061.1,4061.0,0.47003407]
[1759092039762,15.62734746,4061.1,4061.0,0.00293407]
[1759092039971,2.08243662,4061.1,4061.0,0.00293407]
[1759092040171,15.62734746,4061.1,4061.0,0.00293407]
[1759092040866,18.83514746,4061.1,4061.0,0.00293407]
[1759092041064,23.83514746,4061.1,4061.0,0.00293407]
[1759092041265,1.10768,4061.0,4060.5,0.1311]
[1759092041470,1.10768,4061.0,4060.0,0.3441]
[1759092041471,18.08562957,4060.6,4060.0,0.3441]
[1759092041669,1.33291873,4060.1,4060.0,0.6801]
[1759092041864,1.59191873,4060.1,4060.0,0.6801]
[1759092042265,1.59395356,4060.1,4060.0,0.6825971]
[1759092043671,0.00203483,4060.1,4060.0,0.8999971]
[1759092043871,1.59395356,4060.1,4060.0,0.8999971]
[1759092047175,2.08283108,4060.1,4060.0,0.8999971]
[1759092047575,0.00203483,4060.1,4060.0,0.8999971]
[1759092047779,0.26103483,4060.1,4060.0,5.8999971]
[1759092048970,0.00203483,4060.1,4060.0,5.8999971]
[1759092050974,13.54694567,4060.1,4060.0,0.4695971]
[1759092051176,17.24844663,4060.1,4060.0,0.0024971]
[1759092051676,17.24844663,4060.1,4060.0,0.6825971]
[1759092052076,17.50644663,4060.1,4060.0,0.6825971]
[1759092052382,17.50644663,4060.1,4060.0,0.8999971]
[1759092052882,3.96153579,4060.1,4060.0,0.8999971]
[1759092053078,3.46783483,4060.1,4060.0,0.8999971]
[1759092053281,3.96175645,4060.1,4060.0,0.8999971]
[1759092053785,17.50666729,4060.1,4060.0,0.8999971]
[1759092053987,17.50666729,4060.1,4060.0,0.6825971]
[1759092054782,17.01274567,4060.1,4060.0,0.6825971]
[1759092054982,17.50706653,4060.1,4060.0,0.4695971]
[1759092055886,3.70415569,4060.1,4060.0,0.9090971]
[1759092056087,3.70415569,4060.1,4060.0,5.9090971]
[1759092056491,0.49635569,4060.1,4060.0,5.9090971]
[1759092056982,0.00203483,4060.1,4060.0,5.9090971]
[1759092057185,0.49710112,4060.1,4060.0,5.9090971]
[1759092057883,3.2078,4060.6,4060.3,0.44314]
[1759092058188,3.2078,4060.6,4060.5,0.9033]
[1759092058386,3.4658,4060.6,4060.5,0.9033]
[1759092058885,3.4687194,4060.6,4060.5,0.9033]
[1759092059787,3.9123194,4060.6,4060.5,0.9033]
[1759092060886,3.4687194,4060.6,4060.5,0.9033]
[1759092061093,0.2609194,4060.6,4060.5,0.9033]
[1759092061586,0.0029194,4060.6,4060.5,5.9033]
[1759092062587,13.99143024,4060.6,4060.5,0.9033]
[1759092062788,0.2002,4060.5,4060.2,3.2078]
[1759092063098,1.77651873,4060.3,4060.2,3.9751]
[1759092063588,1.77651873,4060.3,4060.2,0.7673]
[1759092064183,15.32142957,4060.3,4060.2,0.7673]
[1759092064380,0.258,4060.4,4060.2,0.7673]
[1759092064587,0.258,4060.4,4060.3,3.9751]
[1759092064780,0.0029194,4060.6,4060.4,0.44314]
[1759092064985,0.0029194,4060.6,4060.5,0.9033]
[1759092066290,0.0029194,4060.6,4060.5,5.9033]
[1759092068093,0.0029194,4060.6,4060.5,6.1613]
[1759092070793,0.258,4061.3,4061.2,1.21035]
[1759092070998,5.18390873,4061.8,4061.0,0.136]
[1759092070999,3.2078,4061.8,4061.6,0.9914]
[1759092071295,14.03800303,4061.7,4061.6,1.2103]
[1759092071486,14.03800303,4061.7,4061.6,0.7673]
[1759092071688,14.04047927,4061.7,4061.6,0.7673]
[1759092071889,14.48097927,4061.7,4061.6,0.7673]
[1759092072797,14.25677927,4061.7,4061.6,0.7673]
[1759092072993,14.48097927,4061.7,4061.6,0.7673]
[1759092073502,0.21877624,4061.7,4061.6,0.7673]
[1759092074394,0.00247624,4061.7,4061.6,0.7673]
[1759092074596,0.2163,4062.5,4062.4,1.19251]
[1759092074795,0.93272519,4062.5,4062.4,1.19251]
[1759092075002,14.47763603,4062.5,4062.4,1.19251]
[1759092075194,13.98541084,4062.5,4062.4,1.19251]
[1759092075689,13.9872558,4062.5,4062.4,1.19251]
[1759092079290,13.9872558,4062.5,4062.4,0.7496]
[1759092079496,14.1876558,4062.5,4062.4,0.5435]
[1759092080204,15.25742313,4062.5,4062.4,0.5435]
[1759092081403,15.51542313,4062.5,4062.4,0.5435]
[1759092086006,15.31502313,4062.5,4062.4,0.5435]
[1759092086509,15.31502313,4062.5,4062.4,0.756]
[1759092087314,0.00184496,4062.5,4062.4,0.756]
[1759092087612,0.21914496,4062.5,4062.4,1.014]
[1759092088205,0.00184496,4062.5,4062.4,1.014]
[1759092088509,0.21914496,4062.5,4062.4,1.014]
[1759092088714,0.21914496,4062.5,4062.4,0.756]
[1759092088910,0.21914496,4062.5,4062.4,1.014]
[1759092089512,0.00184496,4062.5,4062.4,1.014]
[1759092091311,0.4226,4062.8,4062.7,0.4363]
[1759092091517,0.4226,4062.8,4062.7,1.19249]
[1759092091811,0.4226,4062.8,4062.7,0.7496]
[1759092092018,14.16741084,4062.8,4062.7,0.3133]
[1759092092318,14.16916983,4062.8,4062.7,0.3133]
[1759092093407,14.16916983,4062.8,4062.7,0.5371]
[1759092093815,14.16916983,4062.8,4062.7,0.3133]
[1759092094216,14.65842972,4062.8,4062.7,0.3133]
[1759092094716,14.91642972,4062.8,4062.7,0.3133]
[1759092095122,14.42716983,4062.8,4062.7,0.3133]
[1759092095319,14.91659615,4062.8,4062.7,0.3133]
[1759092096919,0.6225,4062.6,4062.5,0.3133]
[1759092097113,15.49517817,4062.6,4062.5,0.3133]
[1759092097320,15.98499414,4062.6,4062.5,0.3133]
[1759092098717,0.1999,4062.5,4062.2,0.3133]
[1759092099025,15.23717817,4062.3,4062.2,0.5371]
[1759092099219,14.45774745,4062.3,4062.2,0.7496]
[1759092100028,0.91283661,4062.3,4062.2,0.7496]
[1759092100319,14.45774745,4062.3,4062.2,0.7496]
[1759092101819,0.91283661,4062.3,4062.2,0.7496]
[1759092102024,0.49023661,4062.3,4062.2,0.7496]
[1759092106619,14.65764745,4062.3,4062.2,0.3133]
[1759092108023,14.65764745,4062.3,4062.2,0.5371]
[1759092112126,15.10057745,4062.3,4062.2,0.5371]
[1759092112631,14.65764745,4062.3,4062.2,0.5371]
[1759092115727,1.07254,4062.2,4062.1,3.2078]
[1759092115930,15.36468745,4062.2,4062.1,3.2078]
[1759092117426,15.36468745,4062.2,4061.6,3.2078]
[1759092117427,0.6296,4061.7,4061.6,3.2078]
[1759092117636,15.99151478,4061.7,4061.6,3.2078]
[1759092123526,15.99151478,4061.7,4061.6,3.5155]
[1759092124028,15.99151478,4061.7,4061.0,0.393]
[1759092124029,0.44301,4061.6,4061.1,3.2078]
[1759092124226,1.69936733,4061.2,4061.1,3.2078]
[1759092124531,15.99151478,4061.2,4061.1,3.2078]
[1759092124727,14.72184745,4061.2,4061.1,3.731]
[1759092125138,14.92174745,4061.2,4061.1,3.731]
[1759092126035,14.92174745,4061.2,4061.1,3.5155]
[1759092126829,14.92174745,4061.2,4061.1,0.3077]
[1759092127923,14.92174745,4061.2,4061.1,1.17856]
[1759092127924,14.03514745,4061.2,4061.1,1.17856]
[1759092128129,14.29097429,4061.2,4061.1,1.17856]
[1759092128330,14.23161084,4061.2,4061.1,0.7355]
[1759092128531,14.92055198,4061.2,4061.1,0.3077]
[1759092129241,0.206,4060.7,4060.6,3.6356]
[1759092129436,0.4297,4060.7,4060.6,3.6356]
[1759092129628,0.6296,4060.7,4060.6,3.6356]
[1759092129835,0.6296,4060.7,4060.6,3.9433]
[1759092130034,1.11863233,4060.7,4060.6,3.5155]
[1759092130230,14.66354317,4060.7,4060.3,0.3077]
[1759092130430,0.0998,4061.0,4060.3,0.3077]
[1759092130431,15.24427817,4060.4,4060.3,0.3077]
[1759092130741,15.50127817,4060.4,4060.3,0.3077]
[1759092131243,15.50127817,4060.4,4060.3,0.5232]
[1759092132128,15.94441817,4060.4,4060.3,0.5232]
[1759092132337,15.50127817,4060.4,4060.3,0.3077]
[1759092133241,15.50127817,4060.4,4060.3,0.5138]
[1759092134140,15.50127817,4060.4,4060.0,3.3462971]
[1759092134436,15.23387817,4060.1,4060.0,3.6831971]
[1759092134637,15.49087817,4060.1,4060.0,3.6831971]
[1759092135538,15.49087817,4060.1,4060.0,3.8892971]
[1759092135841,15.49087817,4060.1,4060.0,3.6831971]
[1759092136840,15.49087817,4060.1,4060.0,3.8892971]
[1759092137036,15.29127817,4060.1,4060.0,3.8892971]
[1759092137840,15.29127817,4060.1,4060.0,4.1155971]
[1759092138939,15.49087817,4060.1,4060.0,4.1155971]
[1759092140254,15.49087817,4060.1,4060.0,3.6831971]
[1759092141246,15.49087817,4060.1,4060.0,3.8892971]
[1759092142352,14.42111084,4060.1,4060.0,3.8892971]
[1759092143655,14.42111084,4060.1,4060.0,0.3393971]
[1759092144056,16.24211341,4060.1,4060.0,0.0024971]
[1759092144449,19.44991341,4060.1,4060.0,0.0024971]
[1759092146850,0.2055,4059.2,4059.1,0.3222]
[1759092147046,0.8828,4059.2,4059.1,0.3222]
[1759092147758,1.36979166,4059.2,4059.1,0.3222]
[1759092147955,1.37279931,4059.2,4059.1,0.32496249]
[1759092150159,1.37279931,4059.2,4059.1,0.55226249]
[1759092152754,1.17479931,4059.2,4059.1,0.55226249]
[1759092152955,1.17479931,4059.2,4059.1,0.77336249]
[1759092153156,0.74699931,4059.2,4059.1,0.77336249]
[1759092153558,0.95249931,4059.2,4059.1,0.77336249]
[1759092155458,1.17479931,4059.2,4059.1,0.77336249]
[1759092155860,1.37279931,4059.2,4059.1,0.77336249]
[1759092156265,1.17479931,4059.2,4059.1,0.77336249]
[1759092157062,1.37279931,4059.2,4059.1,0.77336249]
[1759092157466,14.91771015,4059.2,4059.1,0.32496249]
[1759092158066,14.91771015,4059.2,4059.1,0.00276249]
[1759092158866,19.91771015,4059.2,4059.1,0.00276249]
[1759092159465,14.91771015,4059.2,4059.1,0.00276249]
[1759092159869,1.37279931,4059.2,4059.1,0.00276249]
[1759092160059,14.91771015,4059.2,4059.1,0.00276249]
[1759092160869,14.91771015,4059.2,4059.1,0.32496249]
[1759092162173,14.91771015,4059.2,4059.1,0.00276249]
[1759092162471,19.91771015,4059.2,4059.1,0.00276249]
[1759092166266,19.66071015,4059.2,4059.1,0.00276249]
[1759092166572,19.91771015,4059.2,4059.1,0.00276249]
[1759092166876,0.95249931,4059.2,4059.1,0.77336249]
[1759092167068,1.17479931,4059.2,4059.1,0.77336249]
[1759092167268,1.37279931,4059.2,4059.1,0.77336249]
[1759092168069,0.69549931,4059.2,4059.1,0.77336249]
[1759092168370,0.74599931,4059.2,4059.1,0.77336249]
[1759092170167,0.74599931,4059.2,4059.1,3.98116249]
[1759092174672,0.95149931,4059.2,4059.1,3.98116249]
[1759092175073,1.16419931,4059.2,4059.1,3.98116249]
[1759092176179,14.90721015,4059.2,4059.1,3.98116249]
[1759092177478,14.90721015,4059.2,4059.1,0.77336249]
[1759092178879,14.90721015,4059.2,4059.1,0.55226249]
[1759092183180,14.70911015,4059.2,4059.1,0.75776249]
[1759092184879,14.45311015,4059.2,4059.1,0.75776249]
[1759092185079,14.70911015,4059.2,4059.1,0.75776249]
[1759092187378,14.90721015,4059.2,4059.1,0.55226249]
[1759092187780,14.90721015,4059.2,4059.1,0.32496249]
[1759092189378,14.90721015,4059.2,4059.1,0.00276249]
[1759092190786,1.07545,4058.5,4058.4,0.3156]
[1759092190974,3.15295842,4058.5,4058.4,0.3156]
[1759092191182,16.69786926,4058.5,4058.4,0.3156]
[1759092191478,0.87538,4058.2,4058.1,3.4282]
[1759092191678,16.69359926,4058.2,4058.1,0.3413]
[1759092191884,16.69359926,4058.2,4058.1,0.34380222]
[1759092193790,16.05441926,4058.2,4058.1,0.79050222]
[1759092194490,15.79841926,4058.2,4058.1,0.79050222]
[1759092194690,16.05441926,4058.2,4058.1,0.79050222]
[1759092195486,16.25021926,4058.2,4058.1,0.34380222]
[1759092196091,16.25021926,4058.2,4058.1,0.00250222]
[1759092196493,16.25021926,4058.2,4058.1,0.34380222]
[1759092197793,16.25021926,4058.2,4058.1,0.56420222]